[Event "XX Gran Hotel Bali-B 2023"]
[Site "Benidorm"]
[Date "2023.12.04"]
[Round "5.5"]
[White "Gimeno Simo, Sergio"]
[Black "Medina Romero, Jose"]
[Result "1-0"]
[ECO "C41"]
[WhiteElo "1845"]
[BlackElo "1963"]
[Annotator "NA RC"]
[PlyCount "149"]
[EventDate "2023.12.02"]
[EventType "swiss"]
[EventCountry "ESP"]
[SourceTitle "playchess.com"]
[Source "ChessBase"]
[SourceQuality "1"]
[TimeControl "5400+30"]

1. e4 {[%emt 1:31:00]} e5 {[%emt 0:00:07]} 2. Nf3 {[%emt 0:00:00]} d6 {[%emt 0:00:05]} 3. d4 {[%emt 0:00:00]} exd4 {[%emt 0:00:08]} 4. Nxd4 {[%emt 0:00:00]} Nf6 {[%emt 0:00:08]} 5. Nc3 {[%emt 0:00:00]} Be7 {[%emt 0:00:08]} 6. Bf4 {[%emt 0:00:00]} O-O {[%emt 0:00:17]} 7. Qd2 {[%emt 0:00:00]} d5 {[%emt 0:00:35]} 8. exd5 {[%emt 0:00:00]} Nxd5 {[%emt 0:01:02]} 9. Nxd5 {[%emt 0:00:00]} Qxd5 {[%emt 0:00:18]} 10. Be2 {[%emt 0:00:00]} Bf6 {[%emt 0:02:58]} 11. Nb5 {[%emt 0:00:00]} Qxg2 {[%emt 0:06:30]} 12. O-O-O {[%emt 0:00:00]} Bf5 {[%emt 0:08:55]} 13. f3 {[%emt 0:00:00]} Nc6 {[%emt 0:03:15]} 14. Rhg1 {[%emt 0:00:00]} Qf2 {[%emt 0:00:43]} 15. Be3 {[%emt 0:00:00]} Qxh2 {[%emt 1:12:51]} 16. Bf4 {[%emt 0:07:30]} Qf2 {[%emt 0:00:00]} 17. Be3 {[%emt 0:00:00]} Qh4 {[%emt 0:00:00]} 18. Nxc7 {[%emt 0:00:00]} Qa4 {[%emt 0:00:00]} 19. a3 {[%emt 0:00:00]} Rad8 {[%emt 0:00:00]} 20. Bb5 {[%emt 0:00:00]} Rxd2 {[%emt 0:00:00]} 21. Bxa4 {[%emt 0:00:00]} Rxd1+ {[%emt 0:00:00]} 22. Rxd1 {[%emt 0:00:00]} Ne5 {[%emt 0:00:00]} 23. Nd5 {[%emt 0:00:00]} Bh4 {[%emt 0:00:00]} 24. Rd4 {[%emt 0:00:00]} Bd8 {[%emt 0:00:00]} 25. Rf4 {[%emt 0:00:00]} Bd7 {[%emt 0:00:00]} 26. Bxd7 {[%emt 0:01:48]} Nxd7 {[%emt 0:00:00]} 27. Rg4 {[%emt 0:00:23]} b6 {[%emt 0:00:00]} 28. Bh6 {[%emt 0:00:39]} g6 {[%emt 0:00:00]} 29. Bxf8 {[%emt 0:00:38]} Kxf8 {[%emt 0:00:00]} 30. Kd2 {[%emt 0:00:23]} Nf6 {[%emt 0:00:00]} 31. Rd4 {[%emt 0:00:44]} Nxd5 {[%emt 0:00:00]} 32. Rxd5 {[%emt 0:00:04]} Ke7 {[%emt 0:00:00]} 33. Ke3 {[%emt 0:00:24]} Bc7 {[%emt 0:00:00]} 34. Rd1 {[%emt 0:00:28]} h5 {[%emt 0:00:00]} 35. Ke4 {[%emt 0:00:15]} f5+ {[%emt 0:00:00]} 36. Ke3 {[%emt 0:00:26]} g5 {[%emt 0:00:00]} 37. a4 {[%emt 0:00:44]} h4 {[%emt 0:00:00]} 38. Kf2 {[%emt 0:00:53]} h3 {[%emt 0:00:00]} 39. Rh1 {[%emt 0:00:27]} h2 {[%emt 0:08:10]} 40. Kg2 {[%emt 0:00:10]} Be5 {[%emt 0:01:09]} 41. b3 {[%emt 0:00:31]} g4 {[%emt 0:00:18]} 42. fxg4 {[%emt 0:00:59]} fxg4 {[%emt 0:00:06]} 43. Rd1 {[%emt 0:00:20]} a5 {[%emt 0:00:59]} 44. Rd5 {[%emt 0:00:41]} Ke6 {[%emt 0:00:34]} 45. Rd8 {[%emt 0:00:11]} g3 {[%emt 0:00:17]} 46. Rd3 {[%emt 0:00:28]} Bd6 {[%emt 0:01:10]} 47. c3 {[%emt 0:00:52]} Be5 {[%emt 0:00:48]} 48. b4 {[%emt 0:00:24]} Bd6 {[%emt 0:00:25]} 49. bxa5 {[%emt 0:01:02]} bxa5 {[%emt 0:00:26]} 50. c4 {[%emt 0:00:43]} Bc7 {[%emt 0:01:01]} 51. Rd5 {[%emt 0:00:54]} Bb6 {[%emt 0:00:30]} 52. Kh1 {[%emt 0:00:29]} Bc7 {[%emt 0:00:16]} 53. Kg2 {[%emt 0:00:31]} Bb6 {[%emt 0:00:07]} 54. Rd3 {[%emt 0:00:22]} Bf2 {[%emt 0:00:40]} 55. Rd8 {[%emt 0:00:14]} Bb6 {[%emt 0:00:30]} 56. Rg8 {[%emt 0:00:15]} Bf2 {[%emt 0:00:37]} 57. Ra8 {[%emt 0:00:27]} Ke5 {[%emt 0:01:24]} 58. Rd8 {[%emt 0:01:25]} Bb6 {[%emt 0:00:51]} 59. Rd5+ {[%emt 0:00:27]} Ke6 {[%emt 0:00:24]} 60. Rh5 {[%emt 0:00:42]} Bc7 {[%emt 0:00:08]} 61. c5 {[%emt 0:00:17]} Kd7 {[%emt 0:00:53]} 62. Rh6 {[%emt 0:00:25]} Be5 {[%emt 0:00:21]} 63. Ra6 {[%emt 0:00:48]} Kc7 {[%emt 0:00:40]} 64. Rxa5 {[%emt 0:00:22]} Bd4 {[%emt 0:00:38]} 65. Rb5 {[%emt 0:00:56]} Kc6 {[%emt 0:00:17]} 66. Rb3 {[%emt 0:00:18]} Kxc5 {[%emt 0:00:30]} 67. Rxg3 {[%emt 0:00:22]} Bg1 {[%emt 0:00:07]} 68. Rb3 {[%emt 0:00:26]} Kc6 {[%emt 0:00:15]} 69. a5 {[%emt 0:00:23]} Kc7 {[%emt 0:00:13]} 70. a6 {[%emt 0:00:23]} Kc8 {[%emt 0:01:53]} 71. Rb7 {[%emt 0:00:07]} Bd4 {[%emt 0:00:08]} 72. Kxh2 {[%emt 0:00:20]} Be5+ {[%emt 0:00:23]} 73. Kg2 {[%emt 0:00:09]} Bd4 {[%emt 0:00:04]} 74. Kf3 {[%emt 0:00:18]} Bc5 {[%emt 0:00:10]} 75. Ke4 {[%emt 0:00:06]} 1-0

[Event "XX Gran Hotel Bali-B 2023"]
[Site "Benidorm"]
[Date "2023.12.04"]
[Round "5.6"]
[White "Viciano Barrachina, Aitor"]
[Black "Tejedor Barber, Lorenzo"]
[Result "1/2-1/2"]
[ECO "D00"]
[WhiteElo "1878"]
[BlackElo "1951"]
[Annotator "NA RC"]
[PlyCount "68"]
[EventDate "2023.12.02"]
[EventType "swiss"]
[EventCountry "ESP"]
[SourceTitle "playchess.com"]
[Source "ChessBase"]
[SourceQuality "1"]
[TimeControl "5400+30"]

1. d4 {[%emt 0:00:36]} d5 {[%emt 0:00:04]} 2. Bf4 {[%emt 0:01:04]} c5 {[%emt 0:00:30]} 3. e3 {[%emt 0:00:48]} Nc6 {[%emt 0:00:29]} 4. c3 {[%emt 0:07:58]} Qb6 {[%emt 0:00:27]} 5. Qb3 {[%emt 0:01:31]} c4 {[%emt 0:00:36]} 6. Qxb6 {[%emt 0:02:57]} axb6 {[%emt 0:00:03]} 7. Nd2 {[%emt 0:05:12]} b5 {[%emt 0:04:12]} 8. a3 {[%emt 0:05:35]} Nf6 {[%emt 0:00:22]} 9. Rc1 {[%emt 0:02:17]} Bf5 {[%emt 0:05:06]} 10. Ngf3 {[%emt 0:00:59]} h6 {[%emt 0:02:19]} 11. h3 {[%emt 0:01:04]} e6 {[%emt 0:01:39]} 12. Be2 {[%emt 0:14:03]} Kd7 {[%emt 0:00:10]} 13. O-O {[%emt 0:04:58]} Bd6 {[%emt 0:00:33]} 14. Bxd6 {[%emt 0:01:37]} Kxd6 {[%emt 0:00:11]} 15. Rfe1 {[%emt 0:01:39]} g5 {[%emt 0:01:32]} 16. Nh2 {[%emt 0:09:44]} Rag8 {[%emt 0:16:23]} 17. g4 {[%emt 0:06:19]} Bg6 {[%emt 0:01:25]} 18. Kg2 {[%emt 0:01:43]} h5 {[%emt 0:01:58]} 19. Rh1 {[%emt 0:00:48]} Nd7 {[%emt 0:10:02]} 20. Bd1 {[%emt 0:08:17]} f5 {[%emt 0:00:27]} 21. Bc2 {[%emt 0:01:30]} Nf6 {[%emt 0:02:09]} 22. f3 {[%emt 0:03:08]} Ne7 {[%emt 0:01:16]} 23. Kg3 {[%emt 0:05:01]} Rh7 {[%emt 0:02:17]} 24. Bb1 {[%emt 0:00:53]} Rgh8 {[%emt 0:00:28]} 25. Kg2 {[%emt 0:00:48]} hxg4 {[%emt 0:04:46]} 26. hxg4 {[%emt 0:00:42]} Rh4 {[%emt 0:10:13]} 27. gxf5 {[%emt 0:04:56]} exf5 {[%emt 0:00:16]} 28. Rcg1 {[%emt 0:02:16]} f4 {[%emt 0:04:54]} 29. e4 {[%emt 0:00:45]} dxe4 {[%emt 0:08:54]} 30. fxe4 {[%emt 0:00:01]} Ng4 {[%emt 0:10:32]} 31. Nxg4 {[%emt 0:02:52]} Rxg4+ {[%emt 0:00:02]} 32. Kf2 {[%emt 0:01:22]} Rxg1 {[%emt 0:01:13]} 33. Rxg1 {[%emt 0:00:26]} Rh2+ {[%emt 0:00:20]} 34. Rg2 {[%emt 0:00:06]} Rxg2+ {[%emt 0:00:19]} 1/2-1/2

[Event "XX Gran Hotel Bali-B 2023"]
[Site "Benidorm"]
[Date "2023.12.04"]
[Round "5.7"]
[White "Castillo Garcia, Adrian"]
[Black "Sham R"]
[Result "1/2-1/2"]
[ECO "A36"]
[WhiteElo "1974"]
[BlackElo "1828"]
[Annotator "NA RC"]
[PlyCount "91"]
[EventDate "2023.12.02"]
[EventType "swiss"]
[EventCountry "ESP"]
[SourceTitle "playchess.com"]
[Source "ChessBase"]
[SourceQuality "1"]
[TimeControl "5400+30"]

1. c4 {[%emt 0:00:03]} g6 {[%emt 0:02:27]} 2. Nc3 {[%emt 0:00:10]} Bg7 {[%emt 0:00:07]} 3. g3 {[%emt 0:00:09]} e5 {[%emt 0:00:25]} 4. Bg2 {[%emt 0:01:21]} Ne7 {[%emt 0:00:03]} 5. e4 {[%emt 0:00:11]} d6 {[%emt 0:00:29]} 6. Nge2 {[%emt 0:00:13]} c5 {[%emt 0:01:23]} 7. O-O {[%emt 0:02:16]} Nbc6 {[%emt 0:00:09]} 8. d3 {[%emt 0:02:00]} O-O {[%emt 0:00:14]} 9. Nd5 {[%emt 0:02:06]} Nd4 {[%emt 0:12:39]} 10. Rb1 {[%emt 0:03:05]} Nxe2+ {[%emt 0:06:06]} 11. Qxe2 {[%emt 0:00:08]} Nxd5 {[%emt 0:00:08]} 12. cxd5 {[%emt 0:00:17]} a5 {[%emt 0:05:21]} 13. f4 {[%emt 0:05:44]} exf4 {[%emt 0:08:26]} 14. gxf4 {[%emt 0:02:00]} f5 {[%emt 0:05:16]} 15. b3 {[%emt 0:08:21]} b6 {[%emt 0:09:01]} 16. e5 {[%emt 0:05:41]} Re8 {[%emt 0:01:38]} 17. Bb2 {[%emt 0:02:52]} Ra7 {[%emt 0:02:53]} 18. Rbe1 {[%emt 0:03:13]} Ba6 {[%emt 0:05:44]} 19. Rd1 {[%emt 0:18:09]} Qe7 {[%emt 0:22:53]} 20. Rfe1 {[%emt 0:01:57]} Qh4 {[%emt 0:01:34]} 21. Qf2 {[%emt 0:02:44]} Qxf2+ {[%emt 0:05:48]} 22. Kxf2 {[%emt 0:00:15]} Rd7 {[%emt 0:01:24]} 23. d4 {[%emt 0:03:57]} c4 {[%emt 0:01:53]} 24. Ba3 {[%emt 0:06:00]} Bf8 {[%emt 0:01:04]} 25. Bf1 {[%emt 0:02:23]} b5 {[%emt 0:01:12]} 26. bxc4 {[%emt 0:01:56]} bxc4 {[%emt 0:00:04]} 27. e6 {[%emt 0:02:43]} Rb7 {[%emt 0:01:46]} 28. Rb1 {[%emt 0:03:55]} Be7 {[%emt 0:00:02]} 29. Rxb7 {[%emt 0:00:39]} Bxb7 {[%emt 0:00:01]} 30. Bxc4 {[%emt 0:00:50]} Bh4+ {[%emt 0:00:25]} 31. Ke2 {[%emt 0:00:27]} Bxe1 {[%emt 0:00:17]} 32. Kxe1 {[%emt 0:00:02]} Rc8 {[%emt 0:00:36]} 33. Bb3 {[%emt 0:01:54]} a4 {[%emt 0:04:25]} 34. Bxa4 {[%emt 0:00:53]} Ra8 {[%emt 0:00:33]} 35. e7 {[%emt 0:00:10]} Kf7 {[%emt 0:00:08]} 36. e8=Q+ {[%emt 0:00:09]} Rxe8+ {[%emt 0:00:01]} 37. Bxe8+ {[%emt 0:00:10]} Kxe8 {[%emt 0:00:05]} 38. Bxd6 {[%emt 0:00:12]} Kd7 {[%emt 0:00:10]} 39. Bf8 {[%emt 0:03:10]} Bxd5 {[%emt 0:00:04]} 40. a3 {[%emt 0:00:33]} Kc6 {[%emt 0:02:27]} 41. Kf2 {[%emt 0:00:08]} Kb5 {[%emt 0:00:12]} 42. Kg3 {[%emt 0:00:23]} Kc4 {[%emt 0:00:04]} 43. Bc5 {[%emt 0:02:05]} Kd3 {[%emt 0:00:04]} 44. a4 {[%emt 0:02:20]} Ke3 {[%emt 0:00:06]} 45. Bd6 {[%emt 0:01:41]} Kxd4 {[%emt 0:00:32]} 46. h4 {[%emt 0:00:10]} 1/2-1/2

[Event "XX Gran Hotel Bali-B 2023"]
[Site "Benidorm"]
[Date "2023.12.04"]
[Round "5.8"]
[White "Gyaneshwar B"]
[Black "Stanchev, Aleksandar"]
[Result "1/2-1/2"]
[ECO "E18"]
[WhiteElo "1712"]
[BlackElo "1948"]
[Annotator "NA RC"]
[PlyCount "85"]
[EventDate "2023.12.02"]
[EventType "swiss"]
[EventCountry "ESP"]
[SourceTitle "playchess.com"]
[Source "ChessBase"]
[SourceQuality "1"]
[TimeControl "5400+30"]

1. d4 {[%emt 0:00:02]} Nf6 {[%emt 0:00:01]} 2. c4 {[%emt 0:00:16]} e6 {[%emt 0:00:06]} 3. g3 {[%emt 0:00:04]} d5 {[%emt 0:00:36]} 4. Bg2 {[%emt 0:00:12]} Be7 {[%emt 0:00:45]} 5. Nf3 {[%emt 0:00:08]} O-O {[%emt 0:00:31]} 6. O-O {[%emt 0:00:07]} b6 {[%emt 0:04:11]} 7. cxd5 {[%emt 0:03:09]} exd5 {[%emt 0:00:07]} 8. Nc3 {[%emt 0:00:53]} Bb7 {[%emt 0:01:55]} 9. Bf4 {[%emt 0:03:52]} Nbd7 {[%emt 0:04:27]} 10. Ne5 {[%emt 0:04:35]} Ne4 {[%emt 0:13:22]} 11. Nxe4 {[%emt 0:31:34]} dxe4 {[%emt 0:00:10]} 12. Qc2 {[%emt 0:04:31]} Nf6 {[%emt 0:05:56]} 13. Rfd1 {[%emt 0:01:45]} Re8 {[%emt 0:09:36]} 14. Rac1 {[%emt 0:02:57]} Bd6 {[%emt 0:01:50]} 15. h4 {[%emt 0:07:37]} Qe7 {[%emt 0:10:12]} 16. Be3 {[%emt 0:12:53]} h6 {[%emt 0:10:43]} 17. a3 {[%emt 0:05:57]} a5 {[%emt 0:02:10]} 18. Bh3 {[%emt 0:03:21]} Nd5 {[%emt 0:08:36]} 19. Nc4 {[%emt 0:00:33]} Rad8 {[%emt 0:01:31]} 20. Qb3 {[%emt 0:01:34]} Bc8 {[%emt 0:03:40]} 21. Bxc8 {[%emt 0:01:54]} Rxc8 {[%emt 0:00:04]} 22. Kg2 {[%emt 0:00:20]} Qe6 {[%emt 0:01:24]} 23. Re1 {[%emt 0:02:42]} Kh8 {[%emt 0:00:55]} 24. f4 {[%emt 0:00:48]} exf3+ {[%emt 0:01:37]} 25. exf3 {[%emt 0:00:10]} Qg6 {[%emt 0:02:50]} 26. Nxd6 {[%emt 0:00:23]} Qxd6 {[%emt 0:00:16]} 27. Bf2 {[%emt 0:00:17]} c6 {[%emt 0:01:57]} 28. Re4 {[%emt 0:00:27]} f5 {[%emt 0:00:24]} 29. Ree1 {[%emt 0:01:19]} Qd7 {[%emt 0:03:15]} 30. Qd1 {[%emt 0:02:12]} Rxe1 {[%emt 0:00:52]} 31. Qxe1 {[%emt 0:00:16]} Re8 {[%emt 0:00:49]} 32. Qd2 {[%emt 0:00:10]} Re6 {[%emt 0:00:56]} 33. Re1 {[%emt 0:01:16]} Kg8 {[%emt 0:00:21]} 34. Re5 {[%emt 0:01:33]} Rxe5 {[%emt 0:03:35]} 35. dxe5 {[%emt 0:00:01]} Qe6 {[%emt 0:00:34]} 36. f4 {[%emt 0:00:58]} g5 {[%emt 0:01:29]} 37. Bxb6 {[%emt 0:03:03]} Nxb6 {[%emt 0:03:13]} 38. Qd8+ {[%emt 0:00:01]} Kh7 {[%emt 0:00:54]} 39. Qxb6 {[%emt 0:00:03]} Qd5+ {[%emt 0:00:11]} 40. Kf2 {[%emt 0:01:39]} Qd2+ {[%emt 0:00:10]} 41. Kf1 {[%emt 0:00:06]} Qd1+ {[%emt 0:01:12]} 42. Kf2 {[%emt 0:00:02]} Qd2+ {[%emt 0:00:19]} 43. Kf1 {[%emt 0:00:01]} 1/2-1/2

[Event "XX Gran Hotel Bali-B 2023"]
[Site "Benidorm"]
[Date "2023.12.04"]
[Round "5.10"]
[White "Castrillon Otero, Javier"]
[Black "Kao, Jamison Edrich"]
[Result "0-1"]
[ECO "D30"]
[WhiteElo "1938"]
[BlackElo "1701"]
[Annotator "NA RC"]
[PlyCount "122"]
[EventDate "2023.12.02"]
[EventType "swiss"]
[EventCountry "ESP"]
[SourceTitle "playchess.com"]
[Source "ChessBase"]
[SourceQuality "1"]
[TimeControl "5400+30"]

1. Nf3 {[%emt 0:00:03]} d5 {[%emt 0:00:14]} 2. d4 {[%emt 0:00:13]} Nf6 {[%emt 0:00:08]} 3. c4 {[%emt 0:00:13]} e6 {[%emt 0:00:19]} 4. cxd5 {[%emt 0:00:25]} exd5 {[%emt 0:00:05]} 5. Bg5 {[%emt 0:00:27]} h6 {[%emt 0:00:46]} 6. Bh4 {[%emt 0:00:14]} g5 {[%emt 0:00:43]} 7. Bg3 {[%emt 0:00:20]} Bb4+ {[%emt 0:00:09]} 8. Nfd2 {[%emt 0:04:37]} O-O {[%emt 0:02:42]} 9. Nc3 {[%emt 0:02:03]} Re8 {[%emt 0:03:51]} 10. e3 {[%emt 0:00:47]} c5 {[%emt 0:01:18]} 11. a3 {[%emt 0:06:39]} Ba5 {[%emt 0:07:02]} 12. Nb3 {[%emt 0:02:19]} Ne4 {[%emt 0:00:05]} 13. Rc1 {[%emt 0:07:49]} Nc6 {[%emt 0:02:22]} 14. Nxa5 {[%emt 0:06:31]} Qxa5 {[%emt 0:00:16]} 15. Be2 {[%emt 0:00:15]} cxd4 {[%emt 0:02:46]} 16. exd4 {[%emt 0:00:11]} Nxc3 {[%emt 0:00:41]} 17. Rxc3 {[%emt 0:00:51]} Bg4 {[%emt 0:00:26]} 18. f3 {[%emt 0:00:31]} Bf5 {[%emt 0:02:30]} 19. O-O {[%emt 0:00:29]} Qb6 {[%emt 0:01:27]} 20. Rb3 {[%emt 0:10:27]} Qxd4+ {[%emt 0:01:09]} 21. Bf2 {[%emt 0:00:03]} Qe5 {[%emt 0:01:13]} 22. Re1 {[%emt 0:00:56]} Qc7 {[%emt 0:01:37]} 23. h4 {[%emt 0:02:47]} Rad8 {[%emt 0:06:27]} 24. hxg5 {[%emt 0:00:52]} hxg5 {[%emt 0:00:08]} 25. Qc1 {[%emt 0:02:42]} f6 {[%emt 0:03:06]} 26. Bxa7 {[%emt 0:03:24]} Rd7 {[%emt 0:01:53]} 27. Bf2 {[%emt 0:10:33]} Rh7 {[%emt 0:05:16]} 28. f4 {[%emt 0:10:45]} Qxf4 {[%emt 0:04:38]} 29. Qxf4 {[%emt 0:00:25]} gxf4 {[%emt 0:00:04]} 30. Bf3 {[%emt 0:07:24]} Rxe1+ {[%emt 0:03:48]} 31. Bxe1 {[%emt 0:00:01]} Be4 {[%emt 0:00:09]} 32. Bc3 {[%emt 0:07:46]} f5 {[%emt 0:05:00]} 33. Kf2 {[%emt 0:01:03]} d4 {[%emt 0:09:48]} 34. Bd2 {[%emt 0:00:23]} Ne5 {[%emt 0:00:02]} 35. Kg1 {[%emt 0:07:36]} Rg7 {[%emt 0:04:13]} 36. Kf1 {[%emt 0:00:02]} Ng6 {[%emt 0:18:48]} 37. Be1 {[%emt 0:03:02]} Rc7 {[%emt 0:01:16]} 38. Bd2 {[%emt 0:02:19]} Rc2 {[%emt 0:01:00]} 39. Ke1 {[%emt 0:00:25]} Nh4 {[%emt 0:02:33]} 40. Kd1 {[%emt 0:01:30]} d3 {[%emt 0:04:52]} 41. Bxf4 {[%emt 0:00:48]} Nxf3 {[%emt 0:00:43]} 42. gxf3 {[%emt 0:00:12]} Bxf3+ {[%emt 0:00:02]} 43. Ke1 {[%emt 0:00:09]} Re2+ {[%emt 0:00:11]} 44. Kf1 {[%emt 0:00:14]} Bg2+ {[%emt 0:00:56]} 45. Kg1 {[%emt 0:00:07]} Be4 {[%emt 0:00:07]} 46. Kf1 {[%emt 0:00:51]} Kf7 {[%emt 0:06:41]} 47. Rb6 {[%emt 0:01:30]} Bg2+ {[%emt 0:00:00]} 48. Kg1 {[%emt 0:00:01]} d2 {[%emt 0:00:00]} 49. Bxd2 {[%emt 0:01:11]} Rxd2 {[%emt 0:00:00]} 50. a4 {[%emt 0:00:30]} Bc6 {[%emt 0:00:00]} 51. a5 {[%emt 0:00:09]} Rg2+ {[%emt 0:00:00]} 52. Kf1 {[%emt 0:00:02]} Rg6 {[%emt 0:00:00]} 53. Kf2 {[%emt 0:00:28]} Be4 {[%emt 0:00:00]} 54. Rb5 {[%emt 0:00:59]} Rd6 {[%emt 0:00:00]} 55. Ke3 {[%emt 0:00:22]} Kf6 {[%emt 0:00:00]} 56. b4 {[%emt 0:00:49]} Rd3+ {[%emt 0:00:00]} 57. Kf2 {[%emt 0:00:02]} Ra3 {[%emt 0:00:00]} 58. Rc5 {[%emt 0:00:25]} Kg5 {[%emt 0:00:00]} 59. Rc8 {[%emt 0:01:17]} Ra4 {[%emt 0:00:00]} 60. Rc4 {[%emt 0:00:13]} Kf4 {[%emt 0:00:00]} 61. Ke2 {[%emt 0:00:40]} Ra2+ {[%emt 0:00:00]} 0-1

[Event "XX Gran Hotel Bali-B 2023"]
[Site "Benidorm"]
[Date "2023.12.04"]
[Round "5.11"]
[White "Exposito Perez, Luis"]
[Black "Blanco Garcia Bajo, David"]
[Result "0-1"]
[ECO "E12"]
[WhiteElo "1922"]
[BlackElo "1812"]
[Annotator "NA RC"]
[PlyCount "118"]
[EventDate "2023.12.02"]
[EventType "swiss"]
[EventCountry "ESP"]
[SourceTitle "playchess.com"]
[Source "ChessBase"]
[SourceQuality "1"]
[TimeControl "5400+30"]

1. d4 {[%emt 0:00:03]} Nf6 {[%emt 0:00:16]} 2. c4 {[%emt 0:00:04]} e6 {[%emt 0:00:08]} 3. Nf3 {[%emt 0:00:17]} b6 {[%emt 0:00:24]} 4. Nc3 {[%emt 0:00:16]} Bb7 {[%emt 0:00:36]} 5. Bg5 {[%emt 0:00:42]} Be7 {[%emt 0:01:29]} 6. e3 {[%emt 0:00:48]} h6 {[%emt 0:01:24]} 7. Bh4 {[%emt 0:01:53]} Ne4 {[%emt 0:02:29]} 8. Bxe7 {[%emt 0:04:06]} Qxe7 {[%emt 0:00:13]} 9. Be2 {[%emt 0:02:56]} d6 {[%emt 0:04:34]} 10. Rc1 {[%emt 0:04:26]} f5 {[%emt 0:02:36]} 11. d5 {[%emt 0:05:53]} Nxc3 {[%emt 0:03:06]} 12. Rxc3 {[%emt 0:03:15]} e5 {[%emt 0:00:27]} 13. Qc2 {[%emt 0:09:53]} O-O {[%emt 0:08:26]} 14. e4 {[%emt 0:05:39]} Bc8 {[%emt 0:06:07]} 15. Nd2 {[%emt 0:06:26]} a5 {[%emt 0:07:01]} 16. Bf3 {[%emt 0:02:15]} Na6 {[%emt 0:02:05]} 17. exf5 {[%emt 0:05:00]} Bxf5 {[%emt 0:00:24]} 18. Be4 {[%emt 0:02:27]} Qd7 {[%emt 0:04:09]} 19. O-O {[%emt 0:02:14]} Nc5 {[%emt 0:03:02]} 20. Bxf5 {[%emt 0:03:24]} Qxf5 {[%emt 0:00:42]} 21. Qxf5 {[%emt 0:01:17]} Rxf5 {[%emt 0:00:54]} 22. g3 {[%emt 0:01:17]} Raf8 {[%emt 0:10:55]} 23. Re3 {[%emt 0:02:18]} g5 {[%emt 0:02:33]} 24. b3 {[%emt 0:02:14]} Kg7 {[%emt 0:03:25]} 25. Kg2 {[%emt 0:00:59]} Kg6 {[%emt 0:07:28]} 26. a3 {[%emt 0:03:40]} Nd7 {[%emt 0:01:39]} 27. Ne4 {[%emt 0:02:27]} g4 {[%emt 0:07:37]} 28. Rc1 {[%emt 0:11:19]} Nf6 {[%emt 0:05:24]} 29. Nxf6 {[%emt 0:02:47]} R5xf6 {[%emt 0:00:58]} 30. Rc2 {[%emt 0:00:51]} Rf3 {[%emt 0:00:45]} 31. Rce2 {[%emt 0:01:35]} h5 {[%emt 0:03:39]} 32. b4 {[%emt 0:01:15]} axb4 {[%emt 0:02:43]} 33. axb4 {[%emt 0:00:08]} Rxe3 {[%emt 0:00:13]} 34. Rxe3 {[%emt 0:00:54]} Ra8 {[%emt 0:02:14]} 35. c5 {[%emt 0:03:30]} bxc5 {[%emt 0:01:07]} 36. bxc5 {[%emt 0:00:14]} Ra5 {[%emt 0:00:10]} 37. cxd6 {[%emt 0:02:59]} cxd6 {[%emt 0:00:02]} 38. f4 {[%emt 0:03:04]} Rxd5 {[%emt 0:00:52]} 39. fxe5 {[%emt 0:00:34]} Rxe5 {[%emt 0:01:17]} 40. Rd3 {[%emt 0:00:51]} d5 {[%emt 0:00:22]} 41. Rd4 {[%emt 0:00:53]} Kf5 {[%emt 0:00:48]} 42. Kf2 {[%emt 0:01:00]} Ke6 {[%emt 0:00:23]} 43. Ra4 {[%emt 0:00:14]} Kd6 {[%emt 0:00:19]} 44. Ra6+ {[%emt 0:02:12]} Kc5 {[%emt 0:00:08]} 45. Ra8 {[%emt 0:00:23]} Kb4 {[%emt 0:00:43]} 46. Rb8+ {[%emt 0:01:09]} Kc3 {[%emt 0:00:50]} 47. Rc8+ {[%emt 0:00:47]} Kd2 {[%emt 0:01:26]} 48. Rc5 {[%emt 0:00:23]} Rf5+ {[%emt 0:00:10]} 49. Kg2 {[%emt 0:00:12]} Ke3 {[%emt 0:00:27]} 50. Ra5 {[%emt 0:00:48]} Ke4 {[%emt 0:00:16]} 51. Ra4+ {[%emt 0:01:14]} d4 {[%emt 0:00:08]} 52. h3 {[%emt 0:00:25]} gxh3+ {[%emt 0:00:32]} 53. Kxh3 {[%emt 0:00:05]} Ke3 {[%emt 0:00:15]} 54. Ra7 {[%emt 0:00:52]} d3 {[%emt 0:00:20]} 55. Re7+ {[%emt 0:00:38]} Kf2 {[%emt 0:00:12]} 56. Rd7 {[%emt 0:00:09]} Ke2 {[%emt 0:00:05]} 57. Re7+ {[%emt 0:00:17]} Kd1 {[%emt 0:00:07]} 58. Kh4 {[%emt 0:01:04]} d2 {[%emt 0:00:12]} 59. Rd7 {[%emt 0:00:19]} Re5 {[%emt 0:00:19]} 0-1

[Event "XX Gran Hotel Bali-B 2023"]
[Site "Benidorm"]
[Date "2023.12.04"]
[Round "5.12"]
[White "Sanchez Lopez, Jesus"]
[Black "Rupesh Sai S"]
[Result "1-0"]
[ECO "B11"]
[WhiteElo "1993"]
[BlackElo "1210"]
[Annotator "NA RC"]
[PlyCount "75"]
[EventDate "2023.12.02"]
[EventType "swiss"]
[EventCountry "ESP"]
[SourceTitle "playchess.com"]
[Source "ChessBase"]
[SourceQuality "1"]
[TimeControl "5400+30"]

1. e4 {[%emt 0:00:05]} c6 {[%emt 0:00:54]} 2. Nc3 {[%emt 0:00:23]} d5 {[%emt 0:00:41]} 3. Nf3 {[%emt 0:00:08]} dxe4 {[%emt 0:03:35]} 4. Nxe4 {[%emt 0:00:07]} Nf6 {[%emt 0:00:05]} 5. Qe2 {[%emt 0:00:56]} Nxe4 {[%emt 0:04:29]} 6. Qxe4 {[%emt 0:00:08]} Nd7 {[%emt 0:00:42]} 7. Bc4 {[%emt 0:00:55]} Nf6 {[%emt 0:01:20]} 8. Ne5 {[%emt 0:00:24]} e6 {[%emt 0:02:45]} 9. Qe2 {[%emt 0:00:07]} Be7 {[%emt 0:02:01]} 10. c3 {[%emt 0:02:28]} Qc7 {[%emt 0:05:21]} 11. d4 {[%emt 0:03:29]} O-O {[%emt 0:04:39]} 12. Bf4 {[%emt 0:09:37]} Bd6 {[%emt 0:01:43]} 13. Bd3 {[%emt 0:07:15]} c5 {[%emt 0:06:47]} 14. dxc5 {[%emt 0:09:33]} Qxc5 {[%emt 0:00:38]} 15. O-O {[%emt 0:19:55]} b6 {[%emt 0:06:57]} 16. Rfd1 {[%emt 0:02:56]} Rd8 {[%emt 0:11:53]} 17. c4 {[%emt 0:07:32]} Bb7 {[%emt 0:01:18]} 18. a3 {[%emt 0:01:47]} h6 {[%emt 0:11:32]} 19. b4 {[%emt 0:04:26]} Qc7 {[%emt 0:00:04]} 20. Rac1 {[%emt 0:04:16]} Rac8 {[%emt 0:07:56]} 21. Bg3 {[%emt 0:04:36]} Nd7 {[%emt 0:17:49]} 22. Nxf7 {[%emt 0:06:29]} Bxg3 {[%emt 0:04:58]} 23. Qxe6 {[%emt 0:01:27]} Bxh2+ {[%emt 0:03:11]} 24. Kh1 {[%emt 0:00:02]} Nf6 {[%emt 0:00:01]} 25. Nxd8+ {[%emt 0:06:49]} Kf8 {[%emt 0:00:27]} 26. Qxf6+ {[%emt 0:03:13]} gxf6 {[%emt 0:00:21]} 27. Ne6+ {[%emt 0:00:02]} Kf7 {[%emt 0:00:32]} 28. Nxc7 {[%emt 0:00:14]} Bxc7 {[%emt 0:00:03]} 29. Bf5 {[%emt 0:00:17]} Rd8 {[%emt 0:00:18]} 30. Rxd8 {[%emt 0:00:25]} Bxd8 {[%emt 0:00:02]} 31. Rd1 {[%emt 0:00:34]} Ke8 {[%emt 0:00:12]} 32. Bh3 {[%emt 0:01:45]} a5 {[%emt 0:01:14]} 33. Rd7 {[%emt 0:01:14]} Bc8 {[%emt 0:00:22]} 34. Rh7 {[%emt 0:01:02]} Bxh3 {[%emt 0:00:03]} 35. gxh3 {[%emt 0:00:16]} axb4 {[%emt 0:00:12]} 36. axb4 {[%emt 0:00:10]} Be7 {[%emt 0:00:17]} 37. Rxh6 {[%emt 0:01:54]} Bxb4 {[%emt 0:00:07]} 38. Rxf6 {[%emt 0:00:17]} 1-0